Cogmind - Beta 16 @@@ ROGUE MODE // 2025.10.23 @ 22:59:11 Player: human Result: Destroyed by H-71 Marshal with Heavy Mass Driver Performance ------------- Evolutions (5) 2500 Regions Visited (9) 1800 Robots Destroyed (42) 210 Value Destroyed (1899) 1899 Prototype IDs (34) 680 Alien Tech Used (0) 0 Bonus (1030) 1030 TOTAL SCORE: 8119 Bonus ------- Registered with UFD 300 Met Optimus in HQ 500 Met Data Miner 300 Friendly Fire -70 Cogmind --------- Core Integrity 0/1000 Matter 276/300 Energy 98/100 System Corruption 5% Temperature Cool (0) Movement Core (50) Location -5/Factory Parts ------- > --- POWER (1) -------- (None) > --- PROPULSION (4) --- (None) > --- UTILITY (8) ------ Melee Analysis Suite > --- WEAPON (4) ------- (None) > --- INVENTORY (5) ---- Enhanced Scrap Shield Tower Shield Coil Gun Peak State ------------ > --- POWER ------------ Fission Core > --- PROPULSION ------- Medium Treads Wheel Wheel Wheel > --- UTILITY ---------- Advanced Heat Sink High-capacity Storage Unit Advanced Sensor Array Improved Signal Interpreter Advanced Targeting Computer Weapon Cycler Enhanced Scrap Shield > --- WEAPON ----------- Coil Gun Hypervelocity Gauss Rifle KE Penetrator Improved KE Penetrator > --- INVENTORY -------- Fission Core Light Antimatter Reactor Improved Heat Sink Advanced Heat Sink Large Storage Unit High-capacity Matter Pod Advanced Sensor Array Makeshift Light Armor Plating Tower Shield Drone Bay Scrapoid Pod Heavy Machine Gun Heavy Machine Gun Heavy Flak Cannon Heavy Rocket Launcher CPS Tube Makeshift Spear [Rating: 77] Favorites ----------- Power Fission Core Engine Ion Engine Power Core Fission Core Propulsion Wheel Treads Medium Treads Wheel Wheel Flight Unit Nuclear Pulse Thruster Utility Large Storage Unit Device Advanced Sensor Array Storage Large Storage Unit Processor Improved Signal Interpreter Hackware Hacking Suite Protection Enhanced Scrap Shield Weapon Heavy Machine Gun Energy Gun Medium Laser Ballistic Gun Heavy Machine Gun Ballistic Cannon Slug Cannon Launcher Heavy Rocket Launcher Piercing Weapon Makeshift Spear Build | -11 -10 -10 -9 -6 -6 -6 -6 -5 -5 ------- Run | Yrd Mat Sub Scr Fac Low Low Dat Pro Fac Slots Evolved 10 | . . . . 8 . . . . 2 Power . | . . . . . . . . . . Propulsion 2 | . . . . 1 . . . . 1 Utility 6 | . . . . 5 . . . . 1 Weapon 2 | . . . . 2 . . . . . Parts Attached 60 | 6 5 2 1 15 8 2 . 1 20 Power 4 | 1 . . 1 1 1 . . . . Engine 3 | 1 . . 1 1 . . . . . Core 1 | . . . . . 1 . . . . Reactor . | . . . . . . . . . . Propulsion 15 | 2 2 . . 2 1 1 . . 7 Treads 4 | 2 . . . . 1 . . . 1 Leg . | . . . . . . . . . . Wheel 10 | . 2 . . 2 . 1 . . 5 Hover . | . . . . . . . . . . Flight 1 | . . . . . . . . . 1 Utility 21 | 1 2 . . 7 3 . . . 8 Device 7 | . . . . 2 2 . . . 3 Storage 4 | 1 1 . . 1 . . . . 1 Processor 4 | . . . . 1 . . . . 3 Hackware 2 | . 1 . . . . . . . 1 Protection 4 | . . . . 3 1 . . . . Artifact . | . . . . . . . . . . Weapon 20 | 2 1 2 . 5 3 1 . 1 5 Energy Gun 2 | 2 . . . . . . . . . Energy Cannon . | . . . . . . . . . . Ballistic Gun 9 | . . . . 3 2 . . 1 3 Ballistic Cannon 5 | . . 2 . 2 . . . . 1 Launcher 2 | . 1 . . . . 1 . . . Special Weapon . | . . . . . . . . . . Impact Weapon . | . . . . . . . . . . Slashing Weapon . | . . . . . . . . . . Piercing Weapon 2 | . . . . . 1 . . . 1 Special Melee Weapon . | . . . . . . . . . . Unidentified Prototypes 2 | . . . . . 1 . . . 1 Parts Lost 29 | . . 1 . 4 . . . . 24 Power 2 | . . . . 1 . . . . 1 Propulsion 11 | . . . . 2 . . . . 9 Utility 7 | . . . . . . . . . 7 Weapon 9 | . . 1 . 1 . . . . 7 Highest Loss Streak 15 | . . 1 . 4 . . . . 15 To Critical Strikes . | . . . . . . . . . . Average Backups 12 | 2 5 7 12 11 12 13 13 13 14 Power . | . 1 1 1 1 . 1 1 1 1 Propulsion . | 1 2 2 2 . . . . . . Utility 5 | . . 1 3 3 6 7 7 7 7 Weapon 3 | . 1 2 4 4 3 3 3 3 3 Tool/Special . | . . . . . . . . . . Unused Backups 16 | . . . 2 3 1 . . . 10 Power 2 | . . . . . . . . . 2 Propulsion . | . . . . . . . . . . Utility 8 | . . . . . 1 . . . 7 Weapon 5 | . . . 2 3 . . . . . Tool/Special 1 | . . . . . . . . . 1 Average Slot Usage (%) 88 | . 98 100 100 85 82 87 93 93 76 Engine 5 | . 14 14 14 5 . . . . . Core 2 | . . . . . 6 6 6 6 3 Treads 2 | . 1 . . . 2 6 6 6 3 Wheel 16 | . 26 28 28 17 6 7 13 13 11 Device 9 | . . . . 4 18 20 20 20 12 Storage 8 | . 15 14 14 6 6 6 6 6 4 Processor 4 | . . . . 4 6 6 6 6 10 Hackware 5 | . 10 14 14 6 . . . . 1 Protection 4 | . . . . 14 7 6 6 6 4 Energy Gun 1 | . 20 9 . . . . . . . Ballistic Gun 11 | . . . . 6 19 20 20 23 16 Ballistic Cannon 9 | . . 17 28 17 1 . . . . Piercing Weapon 1 | . . . . . 4 3 . . 1 Peak Build Rating 77 | 6 9 17 19 57 66 67 67 68 77 Average Rating 45 | 4 8 12 18 46 63 66 67 67 63 On Entrance 36 | . 6 9 17 19 46 66 67 67 68 Avg Prop Armor Cover (%) 3 | . . . . . 4 3 3 3 3 Naked Turns . | . . . . . . . . . . Heaviest Build 89 | 13 33 35 35 73 75 70 70 70 89 Greatest Support 46 | 40 40 26 26 46 10 20 20 20 40 Greatest Overweight (x) 7 | . 1 1 1 5 7 6 3 3 4 Average Overweight (x) 2 | . . 1 1 1 6 4 3 3 1 Largest Inventory Capacity 20 | 8 15 15 15 15 15 15 15 15 20 Average Capacity 15 | 7 14 15 15 15 15 15 15 15 16 Most Carried 20 | 4 6 14 15 15 15 15 15 15 20 Average Carried 14 | 2 5 8 14 14 14 15 15 15 16 Final Capacity 15 | 8 15 15 15 15 15 15 15 15 5 Final Carried 15 | 4 6 14 15 14 15 15 15 15 5 Class Distribution -------------------- 44% | Skirmisher 39% | Mutant 8% | Tank 5% | Scavenger-Skirmisher Dominant Class ---------------- Mutant | -10/Materials Mutant | -10/Subcaves Mutant | -9/Scraptown Tank | -6/Factory Skirmisher | -6/Lower Caves Skirmisher | -6/Lower Caves Skirmisher | -6/Data Miner Skirmisher | -5/Proximity Caves Skirmisher | -5/Factory Resources | -11 -10 -10 -9 -6 -6 -6 -6 -5 -5 ----------- Run | Yrd Mat Sub Scr Fac Low Low Dat Pro Fac Matter Collected 2521 | 193 60 197 60 153 651 188 . 135 884 Remotely . | . . . . . . . . . . Salvage Created 2482 | . 76 90 . 90 433 231 . 174 1388 Parts 98 | . 7 6 . 9 4 3 . 5 64 Haulers Intercepted . | . . . . . . . . . . Recyclers Shooed 3 | . . . . . . . . . 3 Parts Field Recycled . | . . . . . . . . . . Retrieved Matter . | . . . . . . . . . . Parts Self-Destructed 12 | . . 7 . . 2 2 . 1 . Prevented 2 | . . . . . 2 . . . . Parts Restored . | . . . . . . . . . . Kills | -11 -10 -10 -9 -6 -6 -6 -6 -5 -5 ------- Run | Yrd Mat Sub Scr Fac Low Low Dat Pro Fac Combat Hostiles Destroyed 36 | . 2 3 . 3 1 3 . 4 20 Guns 30 | . 1 1 . 1 1 2 . 4 20 Cannons 2 | . . 1 . 1 . . . . . AOE 4 | . 1 1 . 1 . 1 . . . Classes Destroyed 11 | . 2 1 . 2 1 2 . 2 1 Worker 5 | . 1 . . 2 . . . . 2 Builder 1 | . . . . 1 . . . . . Swarmer 3 | . . . . . . . . 3 . Grunt 21 | . 2 1 . 2 . 2 . . 14 Brawler 2 | . . . . . . 1 . . 1 Sentry 3 | . . . . . . . . 1 2 Hunter 2 | . . . . . . . . . 2 Programmer 2 | . . . . 1 . . . . 1 Subdweller 2 | . . 2 . . . . . . . Decomposer 3 | . . . . . 2 1 . . . Packrat 1 | . . . . . . 1 . . . Mutant 1 | . . . . . 1 . . . . Best Kill Streak 6 | . 2 1 . 3 1 3 . 3 6 Combat Bots Only 5 | . 2 1 . 1 1 3 . 3 5 Max Kills in Single Turn 2 | . 2 1 . 2 1 1 . 1 2 Gunslinging 1 | . . . . . . . . . 1 Exploded 1 | . 1 1 . 1 . 1 . . . Melee . | . . . . . . . . . . Uniques/NPCs Destroyed . | . . . . . . . . . . Combat | -11 -10 -10 -9 -6 -6 -6 -6 -5 -5 -------- Run | Yrd Mat Sub Scr Fac Low Low Dat Pro Fac Hostile Shots Fired 417 | . 9 19 . 51 12 13 . 32 281 Missed 122 | . 3 3 . 11 3 3 . 9 90 Hits 295 | . 6 16 . 40 9 10 . 23 191 Melee 1 | . . . . . . . . . 1 Projectile 294 | . 6 16 . 40 9 10 . 23 190 AOE 4 | . . 3 . . . . . . 1 Critical Strikes 15 | . 1 . . 3 . . . 1 10 Damage Taken 5495 | . 117 479 . 742 106 195 . 379 3477 Core 1214 | . 12 22 . 37 9 39 . 28 1067 Absorbed by Shields 70 | . . . . . . . . . 70 Core Remaining (%) 90 | 100 . . 86 . . . . 86 . Volleys Fired 113 | . 6 18 . 18 5 12 . 9 45 Largest 4 | . 2 2 . 4 3 4 . 4 4 Hottest 158 | . 80 90 . 158 93 132 . 123 132 Shots Fired 329 | . 9 31 . 48 16 25 . 29 171 Gun 271 | . 6 16 . 14 16 22 . 29 168 Cannon 51 | . . 14 . 34 . . . . 3 Launcher 7 | . 3 1 . . . 3 . . . Special . | . . . . . . . . . . Kinetic 300 | . . 14 . 48 16 22 . 29 171 Thermal 22 | . 6 16 . . . . . . . Explosive 7 | . 3 1 . . . 3 . . . Electromagnetic . | . . . . . . . . . . Robot Hit Streak 14 | . 3 12 . 14 12 4 . 7 14 Robot Miss Streak 14 | . 1 4 . 14 1 2 . 3 4 Penetration Max 2 | . . . . . . . . 1 2 Secondary Targets 8 | . . . . . . 1 . 2 5 Max Gunslinging Chain 1 | . . . . . . 1 . 1 1 Shots Hit Robots 223 | . 6 18 . 26 23 14 . 16 120 Core Hits 133 | . 5 7 . 25 9 11 . 10 66 Critical Kills 7 | . . . . . . 1 . 1 5 Critical Parts Destroyed 22 | . . . . 1 3 3 . 3 12 Critical Strikes 34 | . . 2 . 1 4 4 . 4 19 Burn 1 | . . 1 . . . . . . . Destroy 31 | . . 1 . 1 3 4 . 4 18 Impale 2 | . . . . . 1 . . . 1 Melee Attacks 34 | . . . . . 11 2 . . 21 Impact . | . . . . . . . . . . Slashing . | . . . . . . . . . . Piercing 34 | . . . . . 11 2 . . 21 Sneak Attacks 4 | . . . . . 2 1 . . 1 Combat Hostiles . | . . . . . . . . . . Follow-up Attacks . | . . . . . . . . . . Damage Inflicted 5445 | . 164 429 . 568 719 537 . 299 2729 Guns 3651 | . 68 89 . 159 249 194 . 299 2593 Cannons 740 | . . 262 . 409 . . . . 69 Explosions 443 | . 96 78 . . . 269 . . . Melee 611 | . . . . . 470 74 . . 67 Ramming . | . . . . . . . . . . Kinetic 4234 | . . 262 . 568 249 194 . 299 2662 Thermal 157 | . 68 89 . . . . . . . Explosive 443 | . 96 78 . . . 269 . . . Electromagnetic . | . . . . . . . . . . Impact . | . . . . . . . . . . Slashing . | . . . . . . . . . . Piercing 611 | . . . . . 470 74 . . 67 Highest Corruption 5 | . . . . 2 3 3 3 3 5 Average Corruption 2 | . . . . 1 2 3 3 3 1 Corruption Purged . | . . . . . . . . . . Corruption Blocked . | . . . . . . . . . . Effects 49 | . . . . . 20 14 1 2 12 Message Errors 18 | . . . . . 10 3 . 1 4 Matter Fused 10 | . . . . . 5 3 . 1 1 Heat Flow Errors 6 | . . . . . 2 2 . . 2 Energy Discharges 6 | . . . . . 1 3 1 . 1 Parts Fused 1 | . . . . . . 1 . . . Data Loss (minor) 3 | . . . . . . 1 . . 2 Data Loss (major) 2 | . . . . . 1 1 . . . Misfires 1 | . . . . . 1 . . . . Alerts 2 | . . . . . . . . . 2 Overload Shots . | . . . . . . . . . . Overflow Damage 253 | . . 18 . . 139 2 . . 94 Projectiles 18 | . . 18 . . . . . . . Explosions 2 | . . . . . . 2 . . . Melee 233 | . . . . . 139 . . . 94 Knockbacks 15 | . . 2 . 7 . . . . 6 Impact . | . . . . . . . . . . Kinetic 13 | . . 2 . 7 . . . . 4 Secondary 2 | . . . . . . . . . 2 Self-Inflicted Damage 21 | . 17 . . . . 4 . . . Shots 2 | . 1 . . . . 1 . . . Rammed . | . . . . . . . . . . Targets Rammed . | . . . . . . . . . . Kicked . | . . . . . . . . . . Crushed . | . . . . . . . . . . Highest Temperature 346 | . 88 . . 346 158 140 . 26 302 Average Temperature 102 | . 33 . . 160 65 51 . 19 87 Received Heat Transfer 1000 | . 60 90 . 331 . 90 . 9 420 Effects 2 | . . . . 2 . . . . . Energy Bleed 1 | . . . . 1 . . . . . Damage (minor) 1 | . . . . 1 . . . . . Siege Activations . | . . . . . . . . . . Martial Activations . | . . . . . . . . . . Shielding Activations . | . . . . . . . . . . Robots Disrupted . | . . . . . . . . . . Combat Hostiles . | . . . . . . . . . . Robots Corrupted . | . . . . . . . . . . Combat Hostiles . | . . . . . . . . . . Parts Fried . | . . . . . . . . . . Impact Corruptions . | . . . . . . . . . . Robots Melted . | . . . . . . . . . . Combat Hostiles . | . . . . . . . . . . Parts Melted . | . . . . . . . . . . Heat Transferred 494 | . 185 309 . . . . . . . Parts Sabotaged . | . . . . . . . . . . Parts Stolen . | . . . . . . . . . . Parts Stripped . | . . . . . . . . . . Power Chain Reactions . | . . . . . . . . . . Alert | -11 -10 -10 -9 -6 -6 -6 -6 -5 -5 ------- Run | Yrd Mat Sub Scr Fac Low Low Dat Pro Fac Maximum Alert Level 1 | . . . . . . . . . 1 Low Security (%) 86 | 100 100 . . 100 . . . . 77 Level 1 13 | . . . . . . . . . 22 Level 2 . | . . . . . . . . . . Level 3 . | . . . . . . . . . . Level 4 . | . . . . . . . . . . Level 5 . | . . . . . . . . . . High Security . | . . . . . . . . . . Max Security . | . . . . . . . . . . Peak Influence 309 | . 81 . . 67 . . . . 309 Initial 6 | . . . . . . . . . 6 Average 71 | . 26 . . 8 . . . . 112 Influence Increases 1508 | . 95 20 . 188 5 70 . 140 990 Destroy 0b10 Robot/C 660 | . 40 20 . 60 . 60 . 80 400 Destroy 0b10 Robot/NC 35 | . 5 . . 15 5 . . . 10 Destroy Leader 120 | . 10 . . 20 . 10 . . 80 Trap Triggered on 0b10 10 | . . . . 10 . . . . . Successful Hack 93 | . 9 . . 67 . . . . 17 Select Force Hacks 90 | . . . . . . . . . 90 Disable Machine 60 | . . . . 15 . . . . 45 Destroy Structure 80 | . 31 . . 1 . . . . 48 Partial Spotted 30 | . . . . . . . . . 30 Lose Combat Pursuer 330 | . . . . . . . . 60 270 Influence Decreases 1374 | . 69 46 . 137 56 70 . 130 866 Entered New Map 38 | . . 14 . . 20 . . . 4 Time Decay 826 | . 69 22 . 127 36 70 . 130 372 Search Patrol Dispatched 100 | . . . . . . . . . 100 Lost Part 260 | . . 10 . 10 . . . . 240 Purge Threat 150 | . . . . . . . . . 150 Squads Dispatched 25 | . . . . 6 . . . . 19 Investigation 13 | . . . . 3 . . . . 10 Extermination 5 | . . . . 1 . . . . 4 Reinforcement 4 | . . . . 2 . . . . 2 Assault . | . . . . . . . . . . Garrison 3 | . . . . . . . . . 3 Intercept . | . . . . . . . . . . Searches Triggered 1 | . . . . . . . . . 1 Data Miner Redirects 2 | . . . . . . . . . 2 Construction Impeded 2 | . . . . 1 . . . . 1 Haulers Reinforced . | . . . . . . . . . . Active Scanning Responses . | . . . . . . . . . . Cargo Convoy Interrupts . | . . . . . . . . . . Stealth | -11 -10 -10 -9 -6 -6 -6 -6 -5 -5 --------- Run | Yrd Mat Sub Scr Fac Low Low Dat Pro Fac Distress Signals 4 | . 1 . . 2 . . . . 1 Communications Jammed . | . . . . . . . . . . Distress Signals . | . . . . . . . . . . Times Spotted 91 | . 7 5 . 11 1 3 . 8 56 Peak Tracking Total 12 | . 3 2 . 5 1 3 . 4 12 Tactical Retreats 11 | . . . . . . . . 3 8 Traps | -11 -10 -10 -9 -6 -6 -6 -6 -5 -5 ------- Run | Yrd Mat Sub Scr Fac Low Low Dat Pro Fac Traps Triggered 5 | . 1 1 . . . . . . 3 Indirectly . | . . . . . . . . . . Trap Hack Attempts . | . . . . . . . . . . Triggered . | . . . . . . . . . . Disarmed . | . . . . . . . . . . Reprogrammed . | . . . . . . . . . . Reused 1 | . . . . 1 . . . . . Traps Extracted . | . . . . . . . . . . Installed 1 | . . . . 1 . . . . . Triggered 1 | . . . . 1 . . . . . Most Traps Carried 1 | . . . 1 1 . . . . . Machines | -11 -10 -10 -9 -6 -6 -6 -6 -5 -5 ---------- Run | Yrd Mat Sub Scr Fac Low Low Dat Pro Fac Machines Disabled 6 | . . 1 . 1 1 . . . 3 Max in Single Turn 1 | . . 1 . 1 1 . . . 1 Garrison Access 1 | . . . . . . . . . 1 Machines Repaired . | . . . . . . . . . . Machines Dismantled . | . . . . . . . . . . Machines Sabotaged . | . . . . . . . . . . Overloaded Fab Kills . | . . . . . . . . . . Hacking | -11 -10 -10 -9 -6 -6 -6 -6 -5 -5 --------- Run | Yrd Mat Sub Scr Fac Low Low Dat Pro Fac Machines Accessed 36 | . 6 1 2 8 . . 4 . 15 Terminals 18 | . 6 . . 5 . . . . 7 Fabricators . | . . . . . . . . . . Repair Stations . | . . . . . . . . . . Recycling Units 9 | . . . . 2 . . . . 7 Scanalyzers 1 | . . . . 1 . . . . . Garrison Access 1 | . . . . . . . . . 1 Total Hacks 95 | . 18 1 3 14 . . 30 . 29 Successful 70 | . 11 1 3 9 . . 30 . 16 Failed 24 | . 7 . . 4 . . . . 13 Catastrophic 4 | . 1 . . 1 . . . . 2 Database Lockouts 1 | . . . . 1 . . . . . Manual 46 | . 17 . . 10 . . . . 19 Terminals 47 | . 18 . . 9 . . . . 20 Fabricators . | . . . . . . . . . . Repair Stations . | . . . . . . . . . . Recycling Units 10 | . . . . 3 . . . . 7 Scanalyzers 2 | . . . . 2 . . . . . Garrison Access 2 | . . . . . . . . . 2 Terminal Hacks 44 | . 3 1 3 3 . . 30 . 4 Record 13 | . . . 2 . . . 11 . . Part Schematic 11 | . . . . . . . 11 . . Robot Schematic 5 | . . . . . . . 5 . . Robot Analysis 1 | . 1 . . . . . . . . Prototype ID Bank 4 | . 1 . . . . . 3 . . Branch Access Points 2 | . . . . 1 . . . . 1 Terminal Index 1 | . 1 . . . . . . . . Alert Level 3 | . . . . 1 . . . . 2 Unreport Threat 1 | . . . . . . . . . 1 Zone Layout 1 | . . . . 1 . . . . . Proto ID Catalog 2 | . . 1 1 . . . . . . Fabricator Hacks . | . . . . . . . . . . Repair Station Hacks . | . . . . . . . . . . Recycling Unit Hacks . | . . . . . . . . . . Scanalyzer 1 | . . . . 1 . . . . . Retrieve Study 1 | . . . . 1 . . . . . Garrison Access Hacks 1 | . . . . . . . . . 1 Seal Access 1 | . . . . . . . . . 1 Unauthorized Hacks 24 | . 8 . . 5 . . . . 11 Terminals 15 | . 8 . . 3 . . . . 4 Botnet 7 | . 2 . . 2 . . . . 3 Operators 3 | . 1 . . 1 . . . . 1 Skim 5 | . 5 . . . . . . . . Fabricators . | . . . . . . . . . . Repair Stations . | . . . . . . . . . . Recycling Units 9 | . . . . 2 . . . . 7 Tunnel 3 | . . . . . . . . . 3 Fedlink 6 | . . . . 2 . . . . 4 Scanalyzers . | . . . . . . . . . . Garrison Access . | . . . . . . . . . . Data Cores Recovered 1 | . 1 . . . . . . . . Used . | . . . . . . . . . . Hacking Detections 19 | . 6 . . 6 . . . . 7 Full Trace Events 4 | . . . . 1 . . . . 3 Feedback Events 1 | . . . . . . . . . 1 Corruption 1 | . . . . . . . . . 1 Feedback Blocked . | . . . . . . . . . . Robot Schematics Acquired 5 | . . . . . . . 5 . . Robots Built . | . . . . . . . . . . Authchips . | . . . . . . . . . . Time . | . . . . . . . . . . Total Robot Build Rating . | . . . . . . . . . . Part Schematics Acquired 11 | . . . . . . . 11 . . Parts Built . | . . . . . . . . . . Authchips . | . . . . . . . . . . Time . | . . . . . . . . . . Total Part Build Rating . | . . . . . . . . . . Part Studies Acquired 1 | . . . . 1 . . . . . Parts Repaired . | . . . . . . . . . . Time . | . . . . . . . . . . Parts Recycled . | . . . . . . . . . . Recycled Matter . | . . . . . . . . . . Retrieved Matter . | . . . . . . . . . . Retrieved Components . | . . . . . . . . . . Parts Scanalyzed . | . . . . . . . . . . Part Schematics Acquired . | . . . . . . . . . . Parts Damaged . | . . . . . . . . . . Bothacking | -11 -10 -10 -9 -6 -6 -6 -6 -5 -5 ------------ Run | Yrd Mat Sub Scr Fac Low Low Dat Pro Fac Used RIF Installer . | . . . . . . . . . . Robots Hacked . | . . . . . . . . . . Non-combat . | . . . . . . . . . . Combat . | . . . . . . . . . . Robot Hacks Applied . | . . . . . . . . . . Relay Couplers Released . | . . . . . . . . . . Fabnet Peak Effective % . | . . . . . . . . . . Robots Rewired . | . . . . . . . . . . Allies Hacked . | . . . . . . . . . . Hacks Repelled . | . . . . . . . . . . Allies | -11 -10 -10 -9 -6 -6 -6 -6 -5 -5 -------- Run | Yrd Mat Sub Scr Fac Low Low Dat Pro Fac Total Allies . | . . . . . . . . . . Largest Group . | . . . . . . . . . . Highest-Rated Group . | . . . . . . . . . . Highest-Rated Ally . | . . . . . . . . . . Total Orders . | . . . . . . . . . . Ally Attacks . | . . . . . . . . . . Total Damage . | . . . . . . . . . . Kills . | . . . . . . . . . . Allies Corrupted . | . . . . . . . . . . Allies Melted . | . . . . . . . . . . Intel | -11 -10 -10 -9 -6 -6 -6 -6 -5 -5 ------- Run | Yrd Mat Sub Scr Fac Low Low Dat Pro Fac Active Infowar (turns) 4308 | . . . . 542 1415 706 97 269 1279 Sensors 4308 | . . . . 542 1415 706 97 269 1279 Robot Analysis Total 1 | . 1 . . . . . . . . Derelict Logs Recovered 7 | . . 1 2 . 3 . . 1 . Drone Launches . | . . . . . . . . . . Drone Recoveries . | . . . . . . . . . . Exploration | -11 -10 -10 -9 -6 -6 -6 -6 -5 -5 ------------- Run | Yrd Mat Sub Scr Fac Low Low Dat Pro Fac Turns Passed 7461 | 99 227 651 1647 769 1415 706 97 269 1581 Spaces Moved 5892 | 57 193 552 1554 584 834 438 85 210 1385 Core 399 | 4 . . . . . . . . 395 Treads 57 | 53 4 . . . . . . . . Legs . | . . . . . . . . . . Wheels 5333 | . 189 552 1554 584 834 438 85 210 887 Hover . | . . . . . . . . . . Flight 103 | . . . . . . . . . 103 Fastest Speed 40 | 50 90 105 105 96 160 115 115 115 40 Average Speed 113 | 152 105 105 105 109 162 144 115 115 89 Slowest Speed 175 | 160 160 105 105 145 175 160 115 115 130 Overloaded Moves . | . . . . . . . . . . Propulsion Burnouts . | . . . . . . . . . . Robots Hopped . | . . . . . . . . . . Potential Cave-ins . | . . . . . . . . . . Cave-ins Triggered . | . . . . . . . . . . Exploration Rate (%) 48 | 4 41 35 89 20 80 67 70 40 40 Regions Visited 9 Branch Regions 6 Pre-discovered Areas 6 | . . . 1 1 . . 1 . 3 Known Exits Taken 5 | . . . . 1 1 1 1 1 . Unknown Exits Taken 4 | 1 1 1 1 . . . . . . Scrap Searched 21 | . . 10 3 . 6 2 . . . Spaces Dug 20 | . . . . 1 1 1 . . 17 Terrain Destroyed 109 | . 30 8 . 1 2 35 . 2 31 Melee 19 | . . . . . 1 1 . . 17 Projectile 17 | . . 1 . 1 . . . 2 13 AOE 71 | . 30 7 . . . 34 . . . Terrain Rammed . | . . . . . . . . . . Walls Destroyed . | . . . . . . . . . . Machines Disabled . | . . . . . . . . . . Actions | -11 -10 -10 -9 -6 -6 -6 -6 -5 -5 --------- Run | Yrd Mat Sub Scr Fac Low Low Dat Pro Fac Total 6389 | 66 205 590 1572 679 877 493 84 221 1602 Wait 181 | . . 11 . 42 1 40 . 2 85 Move 5883 | 56 192 551 1553 583 833 437 84 209 1385 Hop . | . . . . . . . . . . Pick Up 53 | 4 2 7 10 9 10 . . . 11 Fast Attach 29 | 6 1 . . 8 2 1 . . 11 Attach 15 | . . 1 . 3 3 . . . 8 Detach 2 | . . . . . . . . . 2 Swap 25 | . 4 2 1 4 3 1 . 1 9 Drop 41 | . . . 8 11 9 . . . 13 Fire 113 | . 6 18 . 18 5 12 . 9 45 Melee 34 | . . . . . 11 2 . . 21 Ram . | . . . . . . . . . . Kick . | . . . . . . . . . . Crush . | . . . . . . . . . . Escape Stasis 12 | . . . . . . . . . 12 Rewire . | . . . . . . . . . . Trap 1 | . . . . 1 . . . . . Miscellaneous . | . . . . . . . . . . Route ------- -11/Scrapyard -10/Materials (discovered 3 exits: [*Mat x2] / *Sub) -10/Subcaves (discovered 2 exits: Mat / *Scr) -9/Scraptown (discovered 2 exits: *Fac x2) -6/Factory (discovered 2 exits: *Low x2) -6/Lower Caves -6/Lower Caves (discovered 2 exits: *Fac / *Dat) -6/Data Miner -5/Proximity Caves -5/Factory (discovered 6 exits: *Fac x2 / *Upp x2 / *Ext x2) History --------- Turn | Location | Event 23 | -11/Scrapyard | Discovered new exit (range 16) 100 | -11/Scrapyard | Entered Materials 101 | -10/Materials | Met a group of wandering Federalists 142 | -10/Materials | Discovered new exit (range 13) 203 | -10/Materials | Discovered new exit (range 6) 304 | -10/Materials | Build established: Mutant 324 | -10/Materials | Discovered new exit (range 5) 327 | -10/Materials | Entered Subcaves 328 | -10/Subcaves | Shifting Twisted Machinery released Battle Cannon 328 | -10/Subcaves | Continued accompanying wandering Federalists (6) 328 | -10/Subcaves | Approached by a straggling Scientist 423 | -10/Subcaves | Identified exit to Materials 722 | -10/Subcaves | Disturbed a concealed Subdweller 864 | -10/Subcaves | Visited 4L-MR0's lab 876 | -10/Subcaves | Found Tower Shield 978 | -10/Subcaves | Entered Scraptown 1309 | -9/Scraptown | Visited Shadow of the Wyrm 1341 | -9/Scraptown | Visited SPCMW 1386 | -9/Scraptown | Visited Awakened 1395 | -9/Scraptown | Visited Cave Peace 1401 | -9/Scraptown | Visited Cyclists 1408 | -9/Scraptown | Visited TADAMA 1579 | -9/Scraptown | Discovered new exit (range 11) 1623 | -9/Scraptown | Scanned Subdweller tech in exchange for log data 1625 | -9/Scraptown | Learned location of 2 exits from Proximity Caves 1626 | -9/Scraptown | Learned Research emergency access door positions 1756 | -9/Scraptown | Visited UFD Registry 1756 | -9/Scraptown | Registered with UFD as "Rusttube" 1799 | -9/Scraptown | Visited Junk Repository 1845 | -9/Scraptown | Visited Scrapoid Pod Storage 1866 | -9/Scraptown | Visited Research Penetration Think Tank 1885 | -9/Scraptown | Visited Science Guys 1940 | -9/Scraptown | Delivered Scrap Shield to a Scientist 2016 | -9/Scraptown | Visited Supply Room 2036 | -9/Scraptown | Visited Supply Room 2048 | -9/Scraptown | Visited Scrap Suit Storage 2080 | -9/Scraptown | Visited Curators Association 2115 | -9/Scraptown | Visited Modified Component R&D 2228 | -9/Scraptown | Found Scrapoid Pod 2502 | -9/Scraptown | Discovered new exit (range 5) 2572 | -9/Scraptown | Met Optimus 2572 | -9/Scraptown | Accepted into 0bPrime 2625 | -9/Scraptown | Entered Factory 2625 | -6/Factory | Evolved 8 slots: Propulsion x1, Utility x5, Weapon x2 2675 | -6/Factory | Loaded intel: 8 recycling unit locations 2702 | -6/Factory | Identified exit to Lower Caves 2879 | -6/Factory | Central database locked down 2997 | -6/Factory | Learned location of Protoforge (-2) 3096 | -6/Factory | Build established: Tank 3334 | -6/Factory | Lost 4 parts (1p2n1w) 3394 | -6/Factory | Entered Lower Caves 3396 | -6/Lower Caves | UFD Scientist delivered a prototype 3399 | -6/Lower Caves | Found Prototype Protection 3401 | -6/Lower Caves | Identified Enh. Scrap Shield 3700 | -6/Lower Caves | Build established: Skirmisher 4071 | -6/Lower Caves | Learned Factory terminal intel 4097 | -6/Lower Caves | Entered a destroyed Warlord outpost 4173 | -6/Lower Caves | Learned 4 Factory zone layouts 4235 | -6/Lower Caves | Identified exit to Lower Caves 4427 | -6/Lower Caves | Attacked by a delusional Derelict stockpiling parts 4809 | -6/Lower Caves | Entered another Lower Caves area 5055 | -6/Lower Caves | Discovered new exit (range 15) 5075 | -6/Lower Caves | Identified exit to Factory 5484 | -6/Lower Caves | Discovered new exit (range 6) 5489 | -6/Lower Caves | Identified exit to Data Miner 5515 | -6/Lower Caves | Entered Data Miner 5515 | -6/Data Miner | Discovered new exit (range 6) 5537 | -6/Data Miner | Met Data Miner 5559 | -6/Data Miner | Learned location of Section 7 (-2) 5559 | -6/Data Miner | Acquired the access code to Warlord's prototype stash 5579 | -6/Data Miner | Received God Mode back door access code from Data Miner 5611 | -6/Data Miner | Identified exit to Proximity Caves 5612 | -6/Data Miner | Entered Proximity Caves 5718 | -5/Proximity Caves | Attracted the attention of an 0b10 checkpoint 5840 | -5/Proximity Caves | Learned Factory interactive machine intel 5881 | -5/Proximity Caves | Entered Factory 5881 | -5/Factory | Evolved 2 slots: Propulsion x1, Utility x1 5882 | -5/Factory | Identified exit to Upper Caves 5883 | -5/Factory | Loaded intel: 53 interactive machine locations 5884 | -5/Factory | Loaded intel: 27 terminal locations 5931 | -5/Factory | Discovered new exit (range 13) 5956 | -5/Factory | Loaded intel: 8 recycling unit locations 6029 | -5/Factory | Identified exit to Factory 6065 | -5/Factory | Incoming investigation squad redirected 6574 | -5/Factory | Garrison activated, responded to threat 6995 | -5/Factory | Discovered exit to Factory (range 12) 7051 | -5/Factory | Identified exit to Extension 7186 | -5/Factory | Core integrity fell below 50% 7200 | -5/Factory | Lost 15 parts (1p4n4u6w) 7375 | -5/Factory | Incoming investigation squad redirected 7381 | -5/Factory | Search patrols dispatched 7455 | -5/Factory | Lost 3 parts (3n) 7457 | -5/Factory | Core integrity fell below 20% 7458 | -5/Factory | Build established: Mutant 7462 | -5/Factory | Destroyed by H-71 Marshal with Heavy Mass Driver Last Messages --------------- 07428_ Penetrated by Slug. 07454_ C-35 Carver knocked back. 07456_ Adv. Hacking Suite destroyed. 07456_ System corrupted by crushing effect (+3). 07456_ Knocked back. 07456_ C-35 Carver knocked back. 07457_ Knocked back. 07457_ Slug penetrates Wall. 07460_ Penetrated by Slug. 07460_ Hvy. Pick destroyed. 07460_ Imp. Signal Interpreter destroyed. 07460_ Critical hit (Blast). 07460_ Knocked back. 07460_ C-35 Carver system corrupted by crushing effect. 07461_ Acquired 8 matter. 07461_ C-35 Carver system terminally corrupted. 07462_ Adv. Salvage Targeting Computer destroyed. 07462_ Critical hit (Blast). Map ----- +----------------------------------------------------+ | ######## ### #????????????????????????????? | | ########+#####"######?????????????????????????? | | / ! # """"""?????????????????????????? | | # ]] # """"""?????????????????????????? | | # ]] # """"""?????????????????????????? | | # ]] # """"""?????????????????????????? | | # # #??????????????????????? | | / """"""""" # #??????????????????????? | | ## # #??????????????????????? | | ## """"""""" # ! #??????????????????????? | | ## ###########??????????????????????? | | ## """"""""" #????????????????????????????????? | | ## #????????????????????????????????? | | ## ???????????????????????????????????? | | # ###########????????????????????????????????????? | | # #??????????????????????????????????????????????? | | # #??????????????????????????????????????????????? | | # #??????????????????????????????????????????????? | | # #??????????????????????????????????????????????? | | #????????#########?????????????????????????????? | | # #????????# #?????????????????????????????? | | # ########## #?#################???????????? | | # + #?# #???????????? | | # #########?# % #???????????? | | # ######## c #???????????? | | # > R @H c% #????????#### | | # ######### ########+########## #+########## ! | | # #???????#####????? ??#[ ## | | # #???????????????# !!! ## "" ##! " | | # #???????????????# !!! ##! "" ## " | | # ????????????????# !!! ## T" [ "" " | | # ????????????????# ## "" ## | | # ????????????????##########[ ""# [ ##### | | # ?????????????????????????# ########### | | # ???????????????????????#### + " | | ? ???????????????????????+ " | | ? ???????????????????????##### | | ?????????????????????????????# ########## | | ?????????????????????????????# + ##### | | ?????????????????????????????# ## ## # # | | ?????????????????????????????# #?####?# """ + # | | ?????????????????????????????# #??????# """ # # | | ????????????????????????????? ??????#/ """ ## | | ????????????????????????????? ??????# ## | | ???????????????????????????? ?############## | | ???????????????????????????? ?# #???# | | ???????????????????????????# ?# """ #???# | | ???????????????????????????## ?# """ ##### | | ????????????????????????????# ?# = """ " | | ????????????????????????????# ?# ######## | +----------------------------------------------------+ Best States ------------- Heat Dissipation 59 Energy Generation 18 Energy Capacity 310 Matter Stores 300 Matter Capacity 300 Sight Range 16 Robot Scan Range 16 Terrain Scan Density 10 Armor Coverage 950 Weapon Cycling 15 Evasion (%) 62 Targeting Accuracy 8 Melee Accuracy 5 Recoil Reduction 2 Salvage Targeting 3 Offensive Hacking 14 Item Schematics ----------------- Combat Drone Bay | -6/Data Miner | Free Lgt. Regenerative Plating | -6/Data Miner | Free Enh. Armored Leg | -6/Data Miner | Free Prc. Matter Filter | -6/Data Miner | Free Enh. Coil Gun | -6/Data Miner | Free Imp. Heavy Treads | -6/Data Miner | Free Imp. Phase Shifter | -6/Data Miner | Free Hvy. Gauss Cannon | -6/Data Miner | Free Linear Gravjet | -6/Data Miner | Free Centrium Wheel | -6/Data Miner | Free Hyp. Railgun | -6/Data Miner | Free Robot Schematics ------------------ B-48 Gladiator | -6/Data Miner | Free L-41 Fighter | -6/Data Miner | Free G-50 Soldier | -6/Data Miner | Free B-60 Warrior | -6/Data Miner | Free H-66 Slayer | -6/Data Miner | Free Fabricated ------------ Nothing Repaired ---------- Nothing Studied --------- Wheel | -6/Factory | Hacked Alien Tech Used ----------------- None Achievements -------------- Civilization 2243 Ghost 'Em Heavy Suspicion Hulk Smash Item+ Link The Feds Loot Taster Strength In Numbers Suspicious Throw Away The Key Challenges ------------ None Game ------ Seed PowerKineticExoskeleton Manual? 0 Play Time 01:44:01 Cumulative 335.1 hours Start 2025.10.23 @ 20:51:55 End 2025.10.23 @ 22:59:11 Sessions 1 Manual Loads 0 Difficulty Rogue Special Mode None Game No. 257 Rogue 257 Adventurer 0 Explorer 0 Win Type - Total 4 Types 3/0/1/0/0/0/0/0/0/0 Lore% 81 Gallery% 68 Achievement% 38 Wizard Run 0 Options --------- Layout 1 ASCII 0 Keyboard 0 Movement Mouse Keybinds 0 Fullscreen 1 Font 24/Smallcaps Map View 50x35 Zoom Use 0% Tactical HUD 1 Map Filters NONE Filters NONE Steam 1 RUN: 99f1cdfa-987e-4db4-bf22-ad4dfff7de9b